bitfinex-derivatives/quotes_ETHF0:USTF0_20260203
["timestamp","ask_amount","ask_price","bid_price","bid_amount"]
[1770133925740,2.551,2299.5,2298.8,2.17658076]
[1770133925937,2.551,2299.5,2298.8,2.18032652]
[1770133926137,2.13035274,2299.4,2297.3,2.551]
[1770133926338,2.551,2299.5,2297.0,4.348]
[1770133926638,0.21765,2299.2,2298.1,2.17499195]
[1770133926840,40.8,2299.1,2298.1,2.17499195]
[1770133927237,40.8,2299.1,2298.1,2.17653392]
[1770133927838,0.21767,2299.0,2298.1,2.17653392]
[1770133928044,4.56768,2298.9,2298.1,0.00154197]
[1770133928241,2.31491476,2298.0,2295.3,5.04621886]
[1770133928442,6.901,2297.9,2296.9,2.17714163]
[1770133928843,6.901,2297.9,2294.7,0.21807]
[1770133928844,40.8,2297.8,2294.2,13.74267751]
[1770133929150,0.21787,2296.9,2295.5,1.79408233]
[1770133929444,2.781,2297.1,2296.4,1.79408233]
[1770133929644,2.781,2297.0,2294.5,2.552]
[1770133929837,0.21787,2296.9,2294.8,1.22857961]
[1770133930045,0.21787,2296.9,2295.0,1.22857961]
[1770133930241,0.21787,2296.9,2296.0,2.17746824]
[1770133930442,0.21788,2296.8,2295.8,2.54264035]
[1770133930638,0.21788,2296.8,2294.2,13.74267751]
[1770133930639,0.02512769,2297.7,2296.2,2.53007651]
[1770133930837,3.31412769,2297.6,2296.4,2.17746824]
[1770133931042,0.21783,2297.3,2296.4,2.17746824]
[1770133931244,0.21783,2297.3,2296.3,2.17746824]
[1770133931640,0.21786,2297.0,2295.6,2.72121402]
[1770133931839,0.2178,2297.6,2296.0,2.54264035]
[1770133932040,44.32313947,2297.8,2294.3,2.552]
[1770133932041,9.072,2297.5,2296.2,0.19113751]
[1770133932348,0.21781,2297.5,2296.1,2.73377786]
[1770133932546,12.23482,2297.4,2296.4,0.19113751]
[1770133932746,0.21784,2297.2,2296.1,2.73377786]
[1770133932945,0.21784,2297.2,2296.2,0.19113751]
[1770133933146,12.017,2297.4,2296.2,2.73377786]
[1770133933546,7.665,2297.3,2296.6,2.73377786]
[1770133933740,7.665,2297.3,2296.6,0.19113751]
[1770133934042,0.21784,2297.2,2296.2,2.54264035]
[1770133934450,0.21784,2297.2,2296.0,0.19113751]
[1770133934950,40.8,2297.1,2296.0,2.73377786]
[1770133935155,41.01785,2297.1,2296.0,2.73377786]
[1770133935449,0.21787,2296.9,2295.7,0.19113751]
[1770133935643,0.21787,2296.9,2296.0,2.73377786]
[1770133935839,12.021,2296.8,2296.0,2.73377786]
[1770133936044,12.021,2296.8,2296.0,3.96235747]
[1770133936246,0.21789,2296.7,2296.0,0.19113751]
[1770133936444,12.021,2296.8,2295.6,2.73377786]
[1770133936644,0.21791,2296.4,2295.6,2.73377786]
[1770133937144,0.21793,2296.2,2295.3,2.73377786]
[1770133937348,2.554,2296.1,2295.3,2.73377786]
[1770133937550,2.55960968,2296.1,2295.5,3.77121996]
[1770133937852,5.185,2296.0,2295.6,2.73377786]
[1770133938042,71.29,2297.1,2296.1,2.54264035]
[1770133938043,0.21787,2296.9,2296.1,2.54264035]
[1770133938344,7.669,2297.0,2296.4,1.41971712]
[1770133938544,7.669,2297.0,2296.4,2.73377786]
[1770133938740,0.3363169,2297.3,2297.0,2.54264035]
[1770133938940,7.673,2297.6,2297.0,2.54264035]
[1770133939144,40.8,2297.5,2296.7,0.19113751]
[1770133940544,41.01781,2297.5,2295.6,0.00364558]
[1770133940849,0.21782,2297.4,2296.6,2.17687753]
[1770133941148,43.16438472,2297.5,2295.7,2.37270118]
[1770133941347,0.21786,2297.0,2295.7,2.37270118]
[1770133941550,2.36438472,2297.4,2296.4,2.17726654]
[1770133941853,7.702,2297.3,2296.5,2.37270118]
[1770133942651,7.91983,2297.3,2296.5,2.37270118]
[1770133943046,7.91983,2297.3,2295.6,0.00364558]
[1770133943047,0.21787,2296.8,2295.7,2.37270118]
[1770133943252,0.2179,2296.6,2295.7,2.37270118]
[1770133943450,2.913,2296.5,2295.7,2.17796614]
[1770133943648,4.356,2296.4,2295.7,2.17796614]
[1770133944250,0.21792,2296.3,2295.3,2.37270118]
[1770133944752,40.8,2296.2,2295.7,2.37270118]
[1770133945254,41.01794,2296.2,2295.3,2.37270118]
[1770133945848,0.21796,2296.0,2294.6,2.37270118]
[1770133946352,0.21796,2296.0,2295.5,2.17820319]
[1770133946855,0.21796,2296.0,2295.0,2.37270118]
[1770133947050,7.724,2295.9,2295.0,2.37270118]
[1770133947252,7.72798215,2295.9,2295.5,2.37270118]
[1770133947655,40.8,2296.2,2295.5,2.37270118]
[1770133947849,7.731,2296.3,2295.8,2.37270118]
[1770133948354,4.357,2296.5,2296.0,2.17830488]
[1770133948658,2.36438472,2296.4,2296.0,2.17830488]
[1770133948956,4.357,2296.5,2296.0,2.17830488]
[1770133949150,2.36438472,2296.4,2295.2,1.10248547]
[1770133949352,2.58230472,2296.3,2294.9,1.10248547]
[1770133949556,4.357,2296.5,2295.6,2.17749411]
[1770133949957,4.36104926,2296.5,2295.6,2.18147627]
[1770133950156,4.36104926,2296.5,2295.9,2.17749411]
[1770133950351,2.36438472,2296.4,2295.9,2.17749411]
[1770133950753,2.58229472,2296.4,2295.9,2.17749411]
[1770133951057,2.36438472,2295.9,2294.8,1.08163506]
[1770133951252,10.10438472,2295.9,2294.8,1.08163506]
[1770133951453,2.36438472,2295.8,2295.4,2.17791862]
[1770133951852,2.36438472,2296.4,2295.4,2.17791862]
[1770133952059,0.00404926,2296.5,2295.7,2.17791862]
[1770133952652,0.00404926,2296.5,2295.4,1.08163506]
[1770133952653,0.21795,2296.0,2294.4,2.37270118]
[1770133952855,2.636,2296.3,2294.4,2.37270118]
[1770133953056,2.636,2296.3,2295.3,2.17808935]
[1770133953255,0.00404926,2296.5,2296.0,2.17808935]
[1770133953654,0.00404926,2296.5,2296.0,4.55079053]
[1770133954062,0.00404926,2296.5,2296.0,2.17808935]
[1770133954558,2.36843398,2296.5,2296.0,2.17808935]
[1770133954950,2.58223472,2297.1,2296.0,4.55079053]
[1770133955154,50.89938472,2297.0,2296.0,4.55079053]
[1770133955359,2.36438472,2296.9,2296.0,2.17808935]
[1770133955956,0.00314584,2296.9,2296.1,2.37270118]
[1770133956256,0.00314584,2296.9,2296.0,2.18163546]
[1770133956257,2.36438472,2297.2,2296.5,2.17808935]
[1770133956453,7.739,2297.4,2296.5,4.55079053]
[1770133956654,7.739,2297.4,2296.8,2.17808935]
[1770133956859,4.358,2297.7,2297.0,2.17808935]
[1770133957160,2.36438472,2297.6,2297.0,2.17808935]
[1770133957558,2.36438472,2297.6,2296.3,2.37270118]
[1770133957860,2.36438472,2297.4,2296.6,2.17554708]
[1770133958063,2.36438472,2297.2,2296.0,2.37624729]
[1770133958257,6.38317904,2297.0,2296.0,2.37624729]
[1770133958457,16.49556376,2297.1,2296.3,2.17745401]
[1770133958658,8.74756376,2297.0,2296.3,2.17745401]
[1770133958855,8.74756376,2297.0,2296.3,2.17340475]
[1770133959360,2.36438472,2296.7,2295.5,2.37270118]
[1770133959555,2.36438472,2296.5,2295.1,2.37270118]
[1770133959754,2.36438472,2296.3,2295.7,2.1778997]
[1770133959956,6.60111904,2296.1,2294.7,2.37270118]
[1770133960161,2.36438472,2295.9,2294.7,2.37270118]
[1770133960463,2.36976752,2295.9,2295.3,2.17839307]
[1770133960665,2.36976752,2295.9,2294.7,2.37607802]
[1770133961166,2.36976752,2295.9,2295.3,2.17836448]
[1770133961167,0.0053828,2295.9,2295.3,2.17836448]
[1770133962368,2.36976752,2295.9,2294.7,0.00337684]
[1770133962667,2.36976752,2295.9,2295.3,2.17836449]
[1770133962864,2.36438472,2295.5,2294.7,0.00337684]
[1770133963166,8.74756376,2295.2,2293.9,2.37270118]
[1770133963357,6.72338472,2295.2,2294.3,2.17930473]
[1770133963565,2.36438472,2295.0,2293.6,2.37270118]
[1770133963863,2.36438472,2294.7,2293.4,2.59466574]
[1770133964065,2.36438472,2294.9,2294.0,2.17964655]
[1770133965266,2.36438472,2294.7,2294.0,2.17964655]
[1770133966568,6.72438472,2295.2,2294.3,0.00337684]
[1770133966764,7.752,2295.0,2294.4,2.17964655]
[1770133966965,10.11638472,2295.0,2294.4,2.17964655]
[1770133967165,7.752,2295.0,2294.4,2.17964655]
[1770133967366,7.752,2295.0,2294.4,2.18302339]
[1770133967666,10.11638472,2295.0,2294.4,2.17964655]
[1770133968167,7.752,2295.0,2294.6,0.00337684]
[1770133968367,10.11638472,2295.0,2294.5,0.00337684]
[1770133969067,3.27498725,2295.0,2294.9,0.00337684]
[1770133969367,2.54465186,2295.3,2295.2,0.95764655]
[1770133969666,10.30865186,2295.3,2293.5,2.557]
[1770133969868,7.764,2295.3,2294.9,2.17753772]
[1770133970267,7.764,2295.3,2295.0,0.00337684]
[1770133970468,6.90465186,2295.6,2295.2,2.18091456]
[1770133970669,6.90465186,2295.6,2295.2,2.17753772]
[1770133970867,4.36,2295.6,2295.2,2.17753772]
[1770133971170,4.36,2295.6,2295.2,0.21846281]
[1770133972363,2.54391526,2296.4,2295.8,0.21846281]
[1770133972569,2.54391526,2296.2,2294.3,0.21811]
[1770133972769,2.54391526,2296.1,2294.4,2.557]
[1770133972969,41.01793,2296.2,2294.4,2.557]
[1770133972970,2.76187526,2295.9,2294.4,2.557]
[1770133973170,2.76187526,2295.9,2295.5,2.17788977]
[1770133973467,2.54285426,2295.8,2295.5,9.46e-06]
[1770133973670,2.54285426,2295.6,2294.4,2.557]
[1770133973967,0.00439934,2295.9,2294.5,0.21809]
[1770133974270,8.9260333,2297.4,2295.3,0.21801]
[1770133974468,2.54285426,2297.4,2295.5,0.21799]
[1770133974863,2.54285426,2297.4,2295.4,6.917]
[1770133975062,2.54285426,2297.1,2295.4,6.92209285]
[1770133976083,2.76070426,2297.1,2295.4,6.92209285]
[1770133976665,2.76070426,2297.1,2295.5,0.02436468]
[1770133976970,0.00363782,2297.4,2295.7,0.21797]
[1770133977172,0.00363782,2297.4,2295.5,6.48142452]
[1770133977567,0.00363782,2297.4,2295.5,3.99600439]
[1770133978169,2.54649208,2297.4,2295.6,2.77499]
[1770133978365,2.54649208,2297.4,2295.6,7.13399]
[1770133978769,0.00363782,2297.4,2295.6,7.13399]
[1770133978965,0.00363782,2297.4,2295.8,2.50988341]
[1770133979268,0.00363782,2297.4,2295.9,2.50988341]
[1770133979866,0.00363782,2297.4,2295.8,2.50988341]
[1770133980072,0.00363782,2297.4,2296.0,2.77495]
[1770133980468,2.54649208,2297.4,2295.6,2.50988341]
[1770133980775,0.00363782,2297.4,2295.7,6.915]
[1770133980966,2.76058426,2298.4,2295.8,3.7281302]
[1770133981173,2.76059426,2298.2,2296.1,2.50416542]
[1770133981372,2.54285426,2297.5,2295.9,4.359]
[1770133981573,2.54285426,2297.4,2296.0,2.556]
[1770133981973,2.54702913,2297.4,2296.0,2.556]
[1770133982275,2.54285426,2297.2,2296.0,2.556]
[1770133982471,0.21783,2297.3,2296.0,2.556]
[1770133982972,0.00417487,2297.4,2296.0,2.556]
[1770133983174,0.00417487,2297.4,2296.3,0.21792]
[1770133983574,4.36635767,2297.4,2296.0,2.556]
[1770133983967,2.54285426,2297.2,2296.0,2.556]
[1770133984170,6.90503706,2297.2,2296.0,2.556]
[1770133984370,4.3621828,2297.1,2296.0,2.556]
[1770133984570,2.54285426,2297.2,2296.0,2.556]
[1770133985372,2.54285426,2297.1,2296.0,2.556]
[1770133985773,0.21783,2297.3,2296.0,2.556]
[1770133985973,7.12286706,2297.3,2296.0,2.556]
[1770133986476,2.54285426,2296.9,2295.4,0.00509285]
[1770133986874,2.54285426,2296.5,2295.5,2.556]
[1770133987271,4.3621828,2296.4,2295.5,2.556]
[1770133987472,2.54285426,2297.2,2295.5,2.556]
[1770133987669,2.54285426,2297.1,2295.5,2.556]
[1770133987873,2.54285426,2297.0,2295.5,2.556]
[1770133988376,2.54285426,2296.8,2295.5,2.556]
[1770133988878,2.54285426,2296.4,2295.5,2.556]
[1770133989378,4.3621828,2296.2,2295.4,0.00509285]
[1770133989570,2.54285426,2296.4,2295.4,0.00509285]
[1770133989571,2.54285426,2297.1,2295.4,0.00509285]
[1770133989777,43.34285426,2297.1,2295.4,0.00509285]
[1770133989976,2.54285426,2297.0,2295.4,0.00509285]
[1770133990471,2.54285426,2296.4,2295.4,0.00509285]
[1770133990674,2.534418,2296.3,2295.4,0.00509285]
[1770133990869,2.534418,2295.8,2294.7,0.01687251]
[1770133991071,1.86122948,2296.6,2294.7,0.01687251]
[1770133991072,2.534418,2296.1,2294.7,0.01687251]
[1770133991277,6.8966008,2296.1,2294.7,0.01687251]
[1770133991472,2.534418,2296.4,2295.0,0.01687251]
[1770133991783,2.534418,2296.7,2295.1,0.01687251]
[1770133992076,2.534418,2296.7,2295.1,0.02051033]
[1770133993275,2.53314014,2296.4,2295.1,0.02051033]
[1770133993682,2.53314014,2296.3,2295.1,0.02051033]
[1770133994381,6.89532294,2296.3,2295.1,0.02051033]
[1770133994573,6.89584972,2296.2,2295.1,0.02051033]
[1770133994774,2.53366692,2297.3,2295.3,0.01837468]
[1770133994973,2.53366692,2297.7,2296.2,0.01837468]
[1770133995176,2.53784179,2297.4,2296.3,2.556]
[1770133995380,2.53366692,2297.1,2296.3,2.556]
[1770133995582,6.89584972,2297.1,2296.3,2.556]
[1770133995783,4.3621828,2297.0,2296.3,2.556]
[1770133996179,4.3621828,2296.9,2296.3,2.556]
[1770133996380,4.3621828,2297.0,2296.3,2.556]
[1770133996578,0.00417487,2297.4,2296.4,0.02016052]
[1770133996778,4.3621828,2297.3,2296.4,0.02016052]
[1770133997186,4.3621828,2297.2,2296.4,0.02016052]
[1770133997381,4.3621828,2297.3,2296.4,0.02016052]
[1770133997689,2.532774,2297.2,2296.3,2.556]
[1770133997888,4.3621828,2297.3,2296.4,0.02016052]
[1770133998087,0.00417487,2297.4,2296.4,0.02016052]
[1770133998288,2.532774,2297.8,2296.6,0.02016052]
[1770133998788,2.53797151,2298.2,2296.7,0.00976551]
[1770133999184,2.53797151,2298.2,2296.8,0.00976551]
[1770133999381,2.54163295,2298.2,2297.0,0.00976551]
[1770133999582,2.53797151,2298.1,2297.1,2.556]
[1770133999782,6.90015431,2297.9,2297.1,2.556]
[1770133999981,4.3621828,2298.1,2297.1,2.56576551]
[1770134000183,0.38812716,2298.8,2297.1,2.56576551]
[1770134000184,2.53797151,2299.2,2297.6,0.00976551]
[1770134000381,2.53797151,2299.2,2297.1,2.556]
[1770134000382,2.53797151,2299.2,2298.0,0.21776]
[1770134000581,2.53797151,2299.2,2298.1,2.56639133]
[1770134000989,2.53753469,2298.9,2298.1,2.555]
[1770134001192,2.54228676,2298.9,2298.1,2.555]
[1770134001490,0.00475207,2298.9,2298.1,2.555]
[1770134001689,2.53991073,2299.7,2298.2,0.22437926]
[1770134001889,2.53991073,2299.2,2298.1,2.555]
[1770134002189,2.53991073,2299.2,2298.1,2.56163926]
[1770134002388,2.53991073,2299.6,2298.3,0.00663926]
[1770134002589,2.53991073,2299.6,2298.1,2.555]
[1770134002590,2.54316205,2299.6,2298.1,2.555]
[1770134002891,2.54323036,2299.0,2297.7,0.21779]
[1770134003094,2.54323036,2299.0,2297.7,2.555]
[1770134003292,6.90541316,2298.6,2297.7,2.555]
[1770134003491,2.54323036,2298.6,2297.7,2.555]
[1770134003692,4.3621828,2298.5,2297.7,2.555]
[1770134003887,2.54323036,2298.6,2297.7,2.555]
[1770134004095,2.54323036,2298.5,2297.7,2.555]
[1770134004495,2.54323036,2298.8,2297.7,2.555]
[1770134004696,4.3621828,2298.4,2297.7,2.555]
[1770134004892,4.3621828,2298.6,2297.7,2.555]
[1770134005091,2.54323036,2299.5,2297.7,2.555]
[1770134005295,6.90541316,2299.5,2298.2,0.21774]
[1770134005491,2.54323036,2299.3,2297.7,2.555]
[1770134005695,2.54323036,2299.2,2297.7,2.555]
[1770134006098,2.54323036,2299.1,2297.7,2.555]
[1770134006497,0.00325132,2299.6,2298.2,0.00451298]
[1770134006698,0.00325132,2299.6,2298.7,0.00451298]
[1770134006893,0.00325132,2299.6,2298.8,2.554]
[1770134007501,6.90315667,2299.0,2298.7,4.35815022]
[1770134007695,2.54097387,2299.0,2298.7,4.35815022]
[1770134007895,4.3621828,2298.8,2298.7,4.35815022]
[1770134008097,3.40798698,2298.8,2298.7,4.35815022]
[1770134008399,2.54422519,2299.6,2298.7,4.35815022]
[1770134008596,2.44906916,2299.6,2298.7,4.36211055]
[1770134008798,2.5412502,2299.1,2298.7,4.35815022]
[1770134008994,4.98706804,2299.1,2298.7,4.35815022]
[1770134009200,2.44581784,2298.9,2298.7,4.35815022]
[1770134009396,2.5412502,2299.4,2298.7,4.35815022]
[1770134009703,2.65442179,2299.1,2298.7,4.35815022]
[1770134009898,0.11317159,2298.8,2297.6,0.00396033]
[1770134010095,2.5412502,2298.9,2297.7,2.554]
[1770134010300,2.5412502,2298.9,2297.7,2.55796033]
[1770134010497,0.11317159,2298.6,2297.7,2.554]
[1770134010896,2.54323036,2298.7,2297.7,2.55838169]
[1770134011102,2.65640195,2298.7,2297.7,2.55838169]
[1770134012402,2.54323036,2299.0,2297.7,2.77617169]
[1770134012807,0.11317159,2298.5,2297.4,2.554]
[1770134013002,2.54323036,2298.6,2297.4,2.554]
[1770134013203,0.11317159,2298.5,2297.4,2.554]
[1770134013502,0.11317159,2298.6,2297.4,2.554]
[1770134013898,0.00325132,2299.6,2297.4,2.554]
[1770134013899,0.00325132,2299.6,2297.4,2.55811541]
[1770134014103,0.00325132,2299.6,2297.9,2.50416542]
[1770134014308,2.54323036,2300.2,2298.2,2.72190542]
[1770134014606,2.54323036,2300.2,2298.3,4.354]
[1770134014808,2.54323036,2300.0,2298.3,4.354]
[1770134015008,2.54323036,2300.0,2298.3,4.57173]
[1770134015207,2.65640195,2299.9,2298.3,4.57173]
[1770134015503,2.54323036,2299.9,2298.4,0.21772]
[1770134016103,2.54323036,2299.6,2298.3,4.354]
[1770134016510,0.11317159,2299.5,2298.3,4.354]
[1770134017408,2.65640195,2299.2,2298.3,4.354]
[1770134017610,2.54323036,2299.5,2298.3,4.354]
[1770134018109,0.11317159,2299.4,2298.3,4.354]
[1770134018308,2.54323036,2299.4,2298.3,4.354]
[1770134018510,2.65640195,2299.2,2298.3,4.354]
[1770134018708,2.54323036,2299.2,2298.3,4.354]
[1770134018908,0.11317159,2299.1,2298.3,4.354]
[1770134019112,0.11317159,2299.0,2298.3,4.354]
[1770134019411,2.54323036,2299.4,2298.3,4.354]
[1770134019709,2.54323036,2299.2,2298.3,4.354]
[1770134019909,0.11317159,2299.1,2298.3,4.354]
[1770134020111,0.11317159,2299.0,2298.3,4.354]
[1770134020502,2.54323036,2298.6,2297.5,0.21781]
[1770134020705,2.54323036,2298.6,2297.4,4.35711541]
[1770134020913,2.54323036,2297.6,2296.5,37.33116542]
[1770134021212,2.54323036,2298.2,2296.8,0.21787]
[1770134021404,2.65640195,2298.2,2296.8,0.21787]
[1770134021709,2.65640195,2298.0,2296.9,0.21786]
[1770134021909,2.65945879,2298.0,2296.9,0.2215907]
[1770134022109,0.11317159,2297.5,2296.9,0.2215907]
[1770134022309,0.00305684,2298.0,2296.9,0.2215907]
[1770134022511,0.11317159,2297.9,2297.0,0.21785]
[1770134022705,0.11317159,2297.9,2297.1,2.553]
[1770134022907,0.11317159,2297.8,2297.3,0.21782]
[1770134023110,0.11317159,2297.7,2297.3,0.21782]
[1770134023307,0.00305684,2298.0,2297.3,0.21782]
[1770134023507,0.09937527,2297.7,2297.3,0.21782]
[1770134023811,0.09937527,2297.9,2297.3,0.21782]
[1770134024207,2.5462872,2298.0,2297.1,2.553]
[1770134024413,0.09937527,2297.8,2297.1,2.553]
[1770134024612,0.10243211,2298.0,2297.1,2.61662124]
[1770134024812,2.51141974,2298.3,2297.2,0.06362124]
[1770134025012,2.61079501,2298.3,2297.2,0.06362124]
[1770134025211,0.09937527,2298.2,2297.2,0.06362124]
[1770134025506,0.09937527,2298.2,2297.1,2.77084]
[1770134025507,2.61232343,2298.2,2297.1,2.77084]
[1770134025712,0.09937527,2297.9,2297.1,2.77084]
[1770134025912,2.51294816,2298.5,2297.2,0.0605644]
[1770134026113,2.61232343,2298.5,2297.2,0.0605644]
[1770134026414,0.09937527,2297.9,2297.1,2.77084]
[1770134026711,2.61438893,2298.1,2297.1,2.553]
[1770134026910,2.61413838,2297.5,2296.9,0.0037307]
[1770134027112,2.51476311,2298.0,2296.9,0.0037307]
[1770134027313,0.09937527,2297.7,2296.9,0.0037307]
[1770134027815,0.00451604,2298.1,2296.9,0.0037307]
[1770134027816,2.51476311,2297.4,2296.9,0.0037307]
[1770134028015,2.51476311,2297.0,2296.5,4.353]
[1770134028220,2.40290674,2296.8,2295.7,2.50416542]
[1770134028406,2.40290674,2296.8,2295.8,2.553]
[1770134028407,2.30353147,2296.8,2295.8,2.553]
[1770134028813,0.09937527,2296.0,2295.5,4.354]
[1770134029109,2.30353147,2296.3,2295.5,4.35727569]
[1770134029415,2.30353147,2297.0,2295.6,2.47403943]
[1770134029617,0.09937527,2296.6,2295.6,2.47403943]
[1770134029913,2.30353147,2296.8,2295.6,2.69201943]
[1770134030115,2.40838047,2296.8,2295.6,2.69201943]
[1770134030317,0.09937527,2296.6,2295.6,2.69201943]
[1770134030915,0.09937527,2296.5,2295.6,2.69201943]
[1770134031214,0.09937527,2296.6,2295.6,2.69201943]
[1770134031410,0.00547373,2296.8,2295.8,2.49008417]
[1770134031614,2.40418707,2297.6,2296.0,2.49008417]
[1770134031814,2.40418707,2298.0,2296.5,2.70798417]
[1770134032116,2.40418707,2298.0,2297.0,0.21785]
[1770134032307,0.09937527,2297.7,2297.1,2.554]
[1770134032509,2.40418707,2298.4,2297.3,2.70791417]
[1770134032817,2.40418707,2299.8,2297.3,2.49008417]
[1770134033015,2.40418707,2299.7,2297.8,2.32270194]
[1770134033315,2.40418707,2299.7,2298.2,2.54044194]
[1770134033511,2.40418707,2299.7,2298.2,2.54395098]
[1770134033512,2.40780674,2299.7,2298.2,2.54395098]
[1770134033818,2.40780674,2299.7,2298.4,2.32270194]
[1770134034020,2.40780674,2299.7,2298.5,2.554]
[1770134036017,2.40780674,2299.7,2298.2,0.00350904]
[1770134037521,2.40780674,2299.7,2298.3,2.54043194]
[1770134038319,0.00361967,2299.7,2298.7,2.32270194]
[1770134038523,2.50121638,2300.4,2299.2,0.21764]
[1770134038719,2.50121638,2300.4,2299.3,2.554]
[1770134039217,2.50121638,2300.7,2299.4,2.54032194]
[1770134039418,2.50494431,2300.7,2299.4,2.54032194]
[1770134039927,2.50494431,2300.7,2299.3,2.554]
[1770134040328,2.50121638,2300.5,2298.7,2.553]
[1770134040524,2.50121638,2300.3,2298.7,2.553]
[1770134040830,2.50121638,2300.6,2298.8,2.32270194]
[1770134041027,0.00372793,2300.7,2298.9,2.32270194]
[1770134041522,0.00372793,2300.7,2299.5,2.32270194]
[1770134041726,0.00372793,2300.7,2299.6,9.22870194]
[1770134041922,0.00372793,2300.7,2299.6,6.906]
[1770134042129,2.50121638,2301.7,2300.2,2.32270194]
[1770134042325,2.50121638,2301.7,2300.4,2.32270194]
[1770134042725,2.50121638,2301.7,2300.3,2.553]
[1770134042925,2.50121638,2301.5,2300.3,2.553]
[1770134043130,2.50649475,2301.5,2300.3,2.55640283]
[1770134043325,0.21744,2301.4,2300.3,2.55640283]
[1770134043533,2.71868638,2301.1,2299.6,4.353]
[1770134043832,2.50121638,2300.7,2299.6,4.353]
[1770134044023,2.50121638,2300.7,2299.6,3.353]
[1770134044626,2.50121638,2300.7,2299.6,3.35781569]
[1770134044932,2.50121638,2300.7,2299.7,2.32270194]
[1770134045228,2.50121638,2301.4,2299.7,2.32270194]
[1770134045630,0.00527837,2301.5,2300.0,2.32270194]
[1770134045932,2.50121638,2301.4,2300.0,2.32270194]
[1770134046428,2.50121638,2301.1,2299.7,2.32270194]
[1770134046623,2.50121638,2300.8,2299.6,3.35781569]
[1770134047135,2.50121638,2301.1,2299.6,2.32751763]
[1770134047636,2.50649475,2301.5,2299.8,2.54029194]
[1770134047933,2.50121638,2301.3,2299.9,2.552]
[1770134048232,2.50121638,2300.9,2299.9,2.552]
[1770134048729,0.00527837,2301.5,2300.2,2.32270194]
[1770134048934,2.50649475,2301.5,2300.2,2.32270194]
[1770134049233,0.00527837,2301.5,2300.0,2.32270194]
[1770134049431,0.00527837,2301.5,2300.2,2.32270194]
[1770134049633,2.50649475,2301.5,2300.2,2.32270194]
[1770134050428,2.50649475,2301.5,2299.9,2.552]
[1770134051235,2.50121638,2301.0,2299.9,2.552]
[1770134051627,2.71869638,2301.0,2299.9,2.552]
[1770134051834,2.50121638,2300.5,2299.0,2.32270194]
[1770134052034,2.71874638,2300.5,2299.0,2.32270194]
[1770134052234,2.50121638,2300.5,2299.0,2.32270194]
[1770134052827,2.50121638,2300.5,2299.0,2.32621052]
[1770134053732,2.50121638,2300.5,2299.0,2.54388052]
[1770134054430,2.50121638,2300.5,2299.0,2.32621052]
[1770134054626,2.50121638,2301.1,2299.0,2.32621052]
[1770134054832,2.50121638,2300.9,2299.0,2.54387052]
[1770134055027,2.50121638,2300.9,2299.2,2.32270194]
[1770134055634,2.71870638,2300.9,2299.2,2.32270194]
[1770134055828,0.2175,2300.8,2299.2,2.32270194]
[1770134056038,2.50121638,2300.3,2299.0,0.00350858]
[1770134056238,2.50121638,2300.3,2299.0,2.32621052]
[1770134056538,40.8,2301.2,2299.0,2.54387052]
[1770134056539,2.71871638,2300.8,2299.0,2.54387052]
[1770134056737,2.50121638,2300.6,2299.0,2.54387052]
[1770134057434,2.50121638,2300.6,2299.2,2.54034194]
[1770134057738,2.50121638,2301.2,2299.4,2.32270194]
[1770134058037,2.50121638,2301.2,2299.6,2.32270194]
[1770134058438,2.50121638,2301.2,2299.8,2.32270194]
[1770134059534,2.50121638,2301.2,2299.8,2.54029194]
[1770134059934,2.50121638,2302.0,2300.6,2.32270194]
[1770134060139,2.50121638,2302.0,2300.8,2.32270194]
[1770134060334,2.50121638,2302.0,2300.8,6.67270194]
[1770134060738,2.50121638,2302.0,2300.9,2.46525943]
[1770134060938,2.51202565,2302.0,2300.9,0.00427703]
[1770134061140,0.00552563,2302.0,2300.9,2.46953646]
[1770134062141,2.34906647,2302.0,2300.4,2.50416542]
[1770134062338,2.34354084,2301.6,2300.2,2.46525943]
[1770134062539,2.34354084,2301.5,2300.2,2.46525943]
[1770134063141,2.34354084,2301.2,2300.2,0.00379456]
[1770134063339,0.00528364,2301.1,2300.2,0.00379456]
[1770134063644,0.00528364,2300.9,2300.2,0.00379456]
[1770134064043,2.34354084,2301.2,2300.2,0.00379456]
[1770134064245,0.00552563,2302.0,2300.2,2.46905399]
[1770134064443,2.34906647,2302.0,2300.6,2.46525943]
[1770134064643,2.34906647,2302.0,2300.7,5.01625943]
[1770134064842,2.34906647,2302.0,2300.8,2.46525943]
[1770134065045,0.00552563,2302.0,2301.0,2.46525943]
[1770134066046,0.00528364,2301.8,2300.8,2.46525943]
[1770134066444,0.00528364,2301.3,2300.3,2.551]
[1770134066746,0.00528364,2301.9,2300.4,2.46525943]
[1770134067143,2.34882448,2301.8,2300.4,2.46525943]
[1770134067545,0.00528364,2301.7,2300.4,2.46525943]
[1770134067842,2.34882448,2301.8,2300.4,2.46525943]
[1770134068940,2.34882448,2301.6,2300.4,2.46525943]
[1770134069139,2.34354084,2301.6,2300.4,2.46525943]
[1770134069343,0.00528364,2301.4,2300.4,2.46525943]
[1770134069745,0.00528364,2301.3,2300.4,2.46525943]
[1770134070244,0.00528364,2301.1,2300.4,2.46525943]
[1770134070445,2.34354084,2301.6,2300.4,2.46525943]
[1770134070640,0.00528364,2301.5,2300.4,2.46525943]
[1770134070839,0.00528364,2301.4,2300.4,2.46525943]
[1770134071242,0.00528364,2301.3,2300.4,2.46525943]
[1770134071446,0.00528364,2301.4,2300.4,2.46525943]
[1770134071845,0.00528364,2301.1,2300.2,0.00379456]
[1770134072043,2.34354084,2301.2,2300.2,0.00379456]
[1770134072244,2.34354084,2301.0,2300.2,0.00379456]
[1770134072442,2.34882448,2301.0,2300.0,4.35]
[1770134072645,0.00528364,2300.7,2300.0,4.35]
[1770134072850,5.1696042,2301.4,2299.6,2.55]
[1770134072851,0.00528364,2300.3,2299.6,2.55]
[1770134073048,5.1696042,2301.0,2299.5,2.46525943]
[1770134073353,2.34354084,2301.0,2299.5,2.46525943]
[1770134073554,2.3535796,2301.0,2299.5,2.46959777]
[1770134073751,0.00475512,2301.0,2299.7,2.46525943]
[1770134074152,0.01003876,2301.0,2299.7,2.46525943]
[1770134074553,0.00475512,2301.0,2299.7,2.46525943]
[1770134074745,7.39186646,2302.5,2300.8,0.21749]
[1770134074946,2.22226226,2302.5,2301.0,2.46525943]
[1770134075145,2.2275459,2302.4,2301.0,2.46525943]
[1770134075644,0.00528364,2302.3,2301.0,2.46525943]
[1770134076054,2.22758265,2302.4,2301.0,2.46525943]